bitfinex/quotes_BTCUSD_20220306
["timestamp","ask_amount","ask_price","bid_price","bid_amount"]
[1646581321588,0.115719,38908.0,38907.0,6e-05]
[1646581321989,0.436983,38908.0,38907.0,6e-05]
[1646581322387,0.63331149,38908.0,38907.0,6e-05]
[1646581322986,0.62831149,38908.0,38907.0,6e-05]
[1646581323388,0.431983,38908.0,38907.0,6e-05]
[1646581324090,0.0464,38908.0,38907.0,6e-05]
[1646581324693,0.004,38913.0,38907.0,6e-05]
[1646581324938,0.004,38913.0,38911.0,0.21014796]
[1646581325536,0.00022123,38917.0,38911.0,0.21014796]
[1646581325839,0.24522579,38918.0,38912.0,0.3]
[1646581326035,0.24522579,38918.0,38912.0,0.31296202]
[1646581326236,0.00022124,38917.0,38912.0,0.31296202]
[1646581327136,0.24522579,38918.0,38912.0,0.31296202]
[1646581328539,0.24522579,38918.0,38912.0,0.30796202]
[1646581329777,0.24522579,38918.0,38917.0,0.19293855]
[1646581329980,0.24522579,38918.0,38917.0,0.50508279]
[1646581330178,0.24522579,38918.0,38917.0,0.19293855]
[1646581330179,0.23192979,38918.0,38917.0,0.19293855]
[1646581330577,0.22192979,38918.0,38917.0,0.19293855]
[1646581331278,0.22192979,38918.0,38917.0,0.23186319]
[1646581332278,0.22192979,38918.0,38917.0,0.19293855]
[1646581333335,0.21692979,38918.0,38917.0,0.19293855]
[1646581334336,0.21692979,38918.0,38916.0,0.01126647]
[1646581335540,0.4239087,38918.0,38916.0,0.01126647]
[1646581335839,0.21692979,38918.0,38913.0,0.16960621]
[1646581336885,0.00022576,38917.0,38913.0,0.16960621]
[1646581337690,0.18872631,38916.0,38910.0,0.01157966]
[1646581337891,0.21692979,38918.0,38910.0,0.01157966]
[1646581338089,0.00022576,38917.0,38910.0,0.01157966]
[1646581338288,0.00022576,38917.0,38912.0,0.005]
[1646581338592,0.436983,38916.0,38912.0,0.005]
[1646581338791,0.19207661,38915.0,38912.0,0.005]
[1646581338992,0.436983,38914.0,38912.0,0.005]
[1646581339390,1.03417061,38913.0,38912.0,0.005]
[1646581339592,1.57115361,38913.0,38907.0,6e-05]
[1646581339791,0.385583,38912.0,38907.0,6e-05]
[1646581340028,0.24103861,38911.0,38907.0,6e-05]
[1646581340236,0.385583,38910.0,38907.0,6e-05]
[1646581340430,0.20882761,38909.0,38907.0,6e-05]
[1646581340631,0.385583,38908.0,38907.0,6e-05]
[1646581340829,0.536983,38908.0,38907.0,6e-05]
[1646581343132,0.536983,38908.0,38894.0,0.29892863]
[1646581343332,0.1514,38908.0,38892.0,0.3]
[1646581343532,0.1514,38908.0,38897.0,0.17676373]
[1646581344182,0.0514,38908.0,38897.0,0.17676373]
[1646581344583,0.0464,38908.0,38897.0,0.17676373]
[1646581344882,0.0464,38908.0,38898.0,0.3]
[1646581345484,0.0464,38908.0,38897.0,0.17676373]
[1646581346082,0.0464,38908.0,38898.0,0.3]
[1646581346282,0.0464,38908.0,38897.0,0.17676373]
[1646581346683,0.198274,38904.0,38897.0,0.17676373]
[1646581347530,0.198274,38904.0,38894.0,0.00739243]
[1646581347728,0.198274,38904.0,38899.0,0.00022582]
[1646581348132,0.0514,38903.0,38899.0,0.00022582]
[1646581348331,0.24437213,38903.0,38899.0,0.00022582]
[1646581348537,0.385583,38902.0,38899.0,0.00022582]
[1646581348731,0.0514,38901.0,38891.0,0.007]
[1646581348933,0.436983,38900.0,38899.0,0.00022582]
[1646581349529,0.82235,38900.0,38899.0,0.00022582]
[1646581349930,0.82235,38900.0,38886.0,0.31164498]
[1646581349931,0.8866815,38900.0,38886.0,0.31164498]
[1646581350130,0.9116815,38900.0,38887.0,0.19600967]
[1646581350331,1.0403395,38900.0,38887.0,0.19600967]
[1646581350531,0.84735,38900.0,38888.0,0.3]
[1646581351201,1.0439757,38900.0,38888.0,0.3]
[1646581351404,1.0439757,38900.0,38892.0,0.00022583]
[1646581351800,0.84735,38900.0,38892.0,0.00022583]
[1646581352004,0.82235,38900.0,38892.0,0.30022583]
[1646581352198,0.82235,38900.0,38895.0,0.2043861]
[1646581353802,0.82235,38900.0,38896.0,0.00021856]
[1646581354802,0.82235,38900.0,38891.0,0.01562946]
[1646581355256,0.82235,38900.0,38891.0,0.213767]
[1646581355458,0.82235,38900.0,38893.0,0.06431943]
[1646581355856,0.82235,38900.0,38897.0,0.18050138]
[1646581357360,0.82235,38900.0,38897.0,0.18071207]
[1646581358059,0.20849135,38900.0,38897.0,0.48071207]
[1646581358258,0.20849135,38900.0,38898.0,0.064311]
[1646581358457,0.20849135,38900.0,38899.0,0.3]
[1646581358693,0.20849135,38900.0,38899.0,0.42860108]
[1646581358891,0.20849135,38900.0,38899.0,0.42885822]
[1646581359491,0.20849135,38900.0,38899.0,0.49181981]
[1646581359691,0.20849135,38900.0,38899.0,0.42885822]
[1646581360092,0.00021116,38911.0,38909.0,0.21505175]
[1646581360292,0.00021116,38911.0,38909.0,0.27933657]
[1646581360692,0.1869554,38916.0,38909.0,0.27933657]
[1646581360891,0.1869554,38916.0,38909.0,0.21505175]
[1646581361091,0.00021118,38912.0,38909.0,0.21505175]
[1646581361693,0.00021118,38912.0,38911.0,0.02571686]
[1646581361893,0.1869554,38916.0,38911.0,0.02571686]
[1646581362093,0.00021118,38912.0,38909.0,0.21505175]
[1646581363135,0.1869554,38916.0,38909.0,0.21505175]
[1646581363338,0.00012964,38912.0,38909.0,0.21505175]
[1646581363943,0.00012964,38912.0,38905.0,0.3]
[1646581364339,0.1869554,38916.0,38905.0,0.3]
[1646581364540,0.00012964,38911.0,38905.0,0.3]
[1646581364939,0.18641047,38916.0,38906.0,1.15]
[1646581365139,0.18641047,38916.0,38907.0,0.3]
[1646581365339,0.18641047,38916.0,38904.0,0.304]
[1646581365539,0.18641047,38916.0,38902.0,0.41284]
[1646581365840,0.19353619,38917.0,38902.0,0.41284]
[1646581366689,0.19744649,38911.0,38902.0,0.41284]
[1646581366888,0.19744649,38911.0,38905.0,9.676e-05]
[1646581367091,0.385583,38910.0,38905.0,9.676e-05]
[1646581367291,0.385583,38909.0,38905.0,9.676e-05]
[1646581367489,0.3514,38908.0,38905.0,9.676e-05]
[1646581367690,0.736983,38907.0,38905.0,9.676e-05]
[1646581367892,0.54764447,38911.0,38902.0,0.01284]
[1646581367893,0.58058759,38905.0,38902.0,0.01284]
[1646581368092,0.385583,38903.0,38902.0,0.01284]
[1646581368289,0.436983,38903.0,38902.0,0.01284]
[1646581368691,0.385583,38903.0,38902.0,0.01284]
[1646581368890,0.19500459,38905.0,38902.0,0.01284]
[1646581369093,0.0514,38904.0,38902.0,0.01284]
[1646581370937,0.0514,38904.0,38901.0,0.00022471]
[1646581371538,0.0514,38904.0,38896.0,0.2058173]
[1646581371742,0.0514,38904.0,38901.0,0.00022616]
[1646581372340,0.0514,38904.0,38902.0,0.21808443]
[1646581373242,0.15022609,38913.0,38902.0,0.21808443]
[1646581373243,0.3,38912.0,38902.0,0.21808443]
[1646581373440,0.15724644,38908.0,38902.0,0.21808443]
[1646581374087,0.15724644,38908.0,38903.0,0.00022615]
[1646581374688,0.0514,38910.0,38903.0,0.00022615]
[1646581374890,0.1002261,38913.0,38903.0,0.00022615]
[1646581374891,0.0002261,38913.0,38903.0,0.00022615]
[1646581375490,0.0002261,38913.0,38904.0,0.12858547]
[1646581375891,0.0002261,38913.0,38908.0,0.20259115]
[1646581376289,0.0002261,38913.0,38904.0,0.12858547]
[1646581376489,0.0002261,38913.0,38903.0,0.19909571]
[1646581376894,0.15265346,38913.0,38903.0,0.19909571]
[1646581377537,0.1,38915.0,38903.0,0.35628389]
[1646581377942,0.4,38916.0,38903.0,0.35628389]
[1646581378153,0.00020125,38913.0,38906.0,0.06428951]
[1646581378438,0.00020125,38913.0,38907.0,1.69131338]
[1646581378837,0.00020125,38913.0,38908.0,0.3]
[1646581379037,0.37852979,38918.0,38908.0,0.3]
[1646581379237,0.00019345,38913.0,38909.0,0.20523754]
[1646581379639,0.00019345,38913.0,38910.0,0.3]
[1646581379837,0.00019345,38913.0,38908.0,0.3]
[1646581380238,0.1,38917.0,38908.0,0.3]
[1646581380539,0.27852979,38918.0,38908.0,0.3]
[1646581380737,0.00019345,38913.0,38908.0,0.3]
[1646581381588,0.27852979,38918.0,38911.0,0.18695625]
[1646581381790,0.00019792,38913.0,38911.0,0.18695625]
[1646581382790,0.1,38917.0,38911.0,0.18695625]
[1646581382990,0.00019792,38914.0,38911.0,0.18695625]
[1646581383590,0.00019792,38914.0,38910.0,0.003]
[1646581383791,0.00019792,38914.0,38909.0,0.3]
[1646581383994,0.27852979,38918.0,38909.0,0.3]
[1646581384194,0.2737277,38918.0,38911.0,0.4]
[1646581384394,0.19055346,38917.0,38910.0,0.09651117]
[1646581384794,0.1,38917.0,38910.0,0.09651117]
[1646581385039,0.45337926,38918.0,38910.0,0.09651117]
[1646581385040,0.2737277,38918.0,38910.0,0.09651117]
[1646581386540,0.00019746,38916.0,38910.0,0.09651117]
[1646581386940,0.20168287,38913.0,38910.0,0.09651117]
[1646581387144,0.385583,38912.0,38910.0,0.09651117]
[1646581387342,0.436983,38912.0,38910.0,0.09651117]
[1646581387542,0.1,38911.0,38910.0,0.09651117]
[1646581387742,0.536983,38911.0,38910.0,0.09651117]
[1646581388542,1.307983,38911.0,38910.0,0.09651117]
[1646581388788,1.41106458,38911.0,38910.0,0.09651117]
[1646581391393,1.15,38910.0,38907.0,1.59478116]
[1646581391592,0.436983,38909.0,38907.0,1.59478116]
[1646581391792,0.771,38908.0,38907.0,1.59478116]
[1646581391990,1.15,38907.0,38906.0,0.00019741]
[1646581392192,2.522309,38907.0,38906.0,0.00019741]
[1646581392446,0.20334358,38896.0,38894.0,0.3]
[1646581392642,2.17548158,38907.0,38892.0,0.01285]
[1646581392643,0.0514,38895.0,38892.0,0.01285]
[1646581392842,0.0514,38894.0,38892.0,0.01285]
[1646581393044,0.1,38905.0,38890.0,0.3]
[1646581393045,0.385583,38904.0,38894.0,0.1542]
[1646581393242,0.1,38903.0,38894.0,0.1542]
[1646581393442,0.436983,38902.0,38894.0,0.1542]
[1646581393642,0.436983,38902.0,38897.0,0.00019743]
[1646581393845,0.58076471,38900.0,38897.0,0.00019743]
[1646581394142,0.0514,38899.0,38897.0,0.00019743]
[1646581394343,0.385583,38898.0,38897.0,0.00019743]
[1646581394543,0.1,38901.0,38897.0,0.00019743]
[1646581394747,0.001,38903.0,38896.0,0.15]
[1646581394950,0.001,38903.0,38900.0,0.15]
[1646581395143,0.001,38903.0,38902.0,0.17570892]
[1646581395343,0.001,38903.0,38902.0,0.60460926]
[1646581395543,0.001,38903.0,38902.0,0.6560462]
[1646581395743,0.00019733,38916.0,38906.0,0.064283]
[1646581395944,0.2737277,38918.0,38904.0,0.128566]
[1646581396204,0.00019735,38916.0,38905.0,0.3]
[1646581396403,0.00019735,38916.0,38904.0,0.1]
[1646581397204,0.2737277,38918.0,38905.0,0.3]
[1646581397404,0.0001972,38916.0,38906.0,0.00019725]
[1646581397805,0.15880312,38912.0,38906.0,0.00019725]
[1646581398006,0.0001972,38916.0,38906.0,0.00019725]
[1646581398405,0.2737277,38918.0,38905.0,0.3]
[1646581398607,0.0001972,38916.0,38906.0,0.00019725]
[1646581398905,0.18961112,38913.0,38906.0,0.00019725]
[1646581399506,0.18961112,38913.0,38905.0,0.3]
[1646581399707,0.0001972,38916.0,38906.0,0.00019725]
[1646581401746,0.19289064,38915.0,38906.0,0.00019725]
[1646581402751,0.19289064,38915.0,38905.0,0.3]
[1646581403250,0.19289064,38915.0,38906.0,0.00019727]
[1646581404086,0.00019722,38916.0,38906.0,0.00019727]
[1646581404286,0.03945927,38916.0,38905.0,0.3]
[1646581404486,0.03968521,38916.0,38906.0,0.000226]
[1646581405088,0.15203781,38914.0,38906.0,0.000226]
[1646581405290,0.03968521,38916.0,38906.0,0.000226]
[1646581405492,0.03945927,38916.0,38905.0,0.3]
[1646581405689,0.03945927,38916.0,38906.0,0.000226]
[1646581405690,0.03968521,38916.0,38906.0,0.000226]
[1646581406490,0.1719394,38913.0,38906.0,0.000226]
[1646581406690,0.03945927,38916.0,38905.0,0.3]
[1646581406889,0.03968521,38916.0,38906.0,0.000226]
[1646581407837,0.03945927,38916.0,38905.0,0.3]
[1646581408235,0.03967703,38916.0,38906.0,0.00021782]
[1646581408835,0.17684034,38915.0,38906.0,0.00021782]
[1646581409035,0.17684034,38915.0,38905.0,0.3]
[1646581409236,0.17684034,38915.0,38906.0,0.00021782]
[1646581410238,0.17684034,38915.0,38903.0,0.3]
[1646581410441,0.17684034,38915.0,38906.0,0.00021781]
[1646581411394,0.17684034,38915.0,38906.0,0.30021781]
[1646581411595,0.17684034,38915.0,38906.0,0.3]
[1646581411795,0.17684034,38915.0,38906.0,0.30021156]
[1646581412798,0.17684034,38915.0,38903.0,0.305]
[1646581413198,0.17184034,38915.0,38903.0,0.305]
[1646581413597,0.03958866,38916.0,38903.0,0.305]
[1646581413797,0.00012939,38916.0,38903.0,0.3]
[1646581413998,0.2737277,38918.0,38903.0,0.3]
[1646581414199,0.00012938,38916.0,38903.0,0.3]
[1646581415054,0.00012938,38916.0,38904.0,0.059409]
[1646581415255,0.2737277,38918.0,38906.0,0.00022616]
[1646581415454,0.00022611,38916.0,38906.0,0.00022616]
[1646581416254,0.00022611,38916.0,38905.0,0.3]
[1646581416455,0.2737277,38918.0,38906.0,0.00022617]
[1646581416657,0.00022611,38916.0,38906.0,0.00022617]
[1646581417054,0.17734165,38915.0,38906.0,0.00022617]
[1646581417454,0.17734165,38915.0,38905.0,0.005]
[1646581417856,0.17734165,38915.0,38906.0,0.00022617]
[1646581418688,0.17734165,38915.0,38903.0,0.3]
[1646581418889,0.17734165,38915.0,38906.0,0.00022617]
[1646581419790,0.17234165,38915.0,38906.0,0.00022617]
[1646581419990,0.17234165,38915.0,38905.0,0.0642898]
[1646581420290,0.17234165,38915.0,38906.0,0.30021799]
[1646581421091,0.17234165,38915.0,38906.0,0.3]
[1646581421291,0.17234165,38915.0,38906.0,0.30021799]
[1646581422444,0.17234165,38915.0,38906.0,0.00021799]
[1646581423156,0.586983,38914.0,38906.0,0.00021799]
[1646581423452,0.586983,38914.0,38903.0,0.004]
[1646581423453,0.385583,38911.0,38903.0,0.004]
[1646581423644,0.385583,38909.0,38903.0,0.004]
[1646581423844,0.385583,38907.0,38898.0,0.0010866]
[1646581424048,0.0514,38906.0,38896.0,0.3]
[1646581424247,0.18736979,38900.0,38896.0,0.3]
[1646581424446,0.0514,38902.0,38900.0,0.56210937]
[1646581425448,0.385586,38901.0,38900.0,0.56210937]
[1646581425648,0.62719584,38901.0,38900.0,0.56210937]
[1646581426900,0.72719584,38901.0,38900.0,0.56210937]
[1646581427100,1.51499584,38901.0,38900.0,0.56210937]
[1646581427598,1.61840819,38901.0,38900.0,0.56210937]
[1646581427796,2.38960819,38901.0,38900.0,0.56210937]
[1646581427997,2.38960819,38901.0,38900.0,9.37e-06]
[1646581428601,2.19939835,38901.0,38900.0,9.37e-06]
[1646581429200,1.173386,38900.0,38899.0,1.538e-05]
[1646581429400,3.27339975,38900.0,38899.0,1.538e-05]
[1646581429598,3.27339975,38900.0,38894.0,0.1542]
[1646581429599,3.53417307,38900.0,38894.0,0.1542]
[1646581429797,0.7878,38895.0,38894.0,0.1542]
[1646581430042,2.295986,38895.0,38894.0,0.1542]
[1646581430242,2.395986,38895.0,38894.0,0.1542]
[1646581430445,2.49939835,38895.0,38894.0,0.1542]
[1646581430842,1.173386,38892.0,38874.0,0.4368]
[1646581431045,0.19306466,38893.0,38873.0,2.00600995]
[1646581431046,0.16654227,38880.0,38873.0,2.00600995]
[1646581431249,0.21794227,38880.0,38871.0,0.014393]
[1646581431445,0.0514,38880.0,38870.0,0.42]
[1646581431843,0.0514,38880.0,38871.0,0.18878157]
[1646581432145,0.0514,38880.0,38873.0,9.683e-05]
[1646581432344,0.115762,38880.0,38873.0,9.683e-05]
[1646581432543,0.19618655,38876.0,38873.0,9.683e-05]
[1646581432743,0.24758655,38876.0,38875.0,0.00643393]
[1646581433146,0.24758655,38876.0,38867.0,0.00108745]
[1646581433345,0.24758655,38876.0,38874.0,0.00022607]
[1646581433346,0.3,38875.0,38874.0,0.00022607]
[1646581433544,0.0514,38875.0,38874.0,0.00022607]
[1646581434399,0.0514,38875.0,38868.0,0.17579539]
[1646581434601,0.0514,38875.0,38873.0,0.00022607]
[1646581435602,0.0514,38875.0,38868.0,0.17579539]
[1646581435801,0.0464,38875.0,38872.0,0.00022608]
[1646581436701,0.0464,38875.0,38868.0,0.17579539]
[1646581436908,0.3,38874.0,38872.0,0.00022153]
[1646581437103,0.0464,38875.0,38872.0,0.00022153]
[1646581437104,0.436986,38873.0,38872.0,0.00022153]
[1646581437743,0.836986,38873.0,38872.0,0.00022153]
[1646581437944,0.836986,38873.0,38865.0,0.81192434]
[1646581438144,0.1,38872.0,38871.0,0.00022153]
[1646581438346,0.536986,38872.0,38871.0,0.00022153]
[1646581438848,0.836986,38872.0,38871.0,0.00022153]
[1646581439250,0.385586,38871.0,38865.0,0.65075803]
[1646581439446,0.385586,38871.0,38870.0,0.00022154]
[1646581439447,0.3,38871.0,38870.0,0.00022154]
[1646581439648,0.436986,38871.0,38870.0,0.00022154]
[1646581439847,0.0514,38871.0,38870.0,0.00022154]
[1646581440449,0.0514,38871.0,38865.0,0.65075803]
[1646581440651,0.0514,38871.0,38870.0,0.20636038]
[1646581440850,0.0514,38871.0,38870.0,0.52076338]
[1646581441597,0.007,38877.0,38870.0,0.52076338]
[1646581441793,0.16865522,38881.0,38871.0,0.014398]
[1646581441992,0.0514,38883.0,38871.0,0.014398]
[1646581442692,0.03737,38884.0,38876.0,0.16265444]
[1646581442893,0.03737,38884.0,38881.0,0.02573]
[1646581443096,0.03856762,38905.0,38882.0,0.014377]
[1646581443097,0.16359428,38891.0,38882.0,0.014377]
[1646581443292,0.14876578,38897.0,38887.0,0.02573]
[1646581443494,0.66359428,38907.0,38888.0,0.014359]
[1646581443694,0.16359428,38907.0,38889.0,0.01435]
[1646581443900,0.16359428,38907.0,38893.0,0.20104355]
[1646581444094,0.17392754,38903.0,38894.0,0.3]
[1646581444294,0.17392754,38903.0,38896.0,0.00021126]
[1646581444494,0.16359428,38907.0,38894.0,0.27798315]
[1646581444696,1.76076944,38908.0,38894.0,0.27798315]
[1646581445348,0.1,38907.0,38894.0,0.27798315]
[1646581445545,0.18279039,38904.0,38894.0,0.27798315]
[1646581447245,0.1,38907.0,38894.0,0.27798315]
[1646581447449,1.76076944,38908.0,38896.0,0.064303]
[1646581447657,0.001,38910.0,38897.0,0.3]
[1646581447848,0.001,38910.0,38898.0,0.01285]
[1646581448251,0.16196743,38907.0,38902.0,0.20837748]
[1646581448448,0.001,38910.0,38903.0,0.3]
[1646581449196,0.00022597,38908.0,38903.0,0.36429183]
[1646581449595,0.00022597,38908.0,38902.0,0.22122748]
[1646581449991,0.001,38910.0,38902.0,0.22122748]
[1646581450192,0.00022597,38908.0,38903.0,0.0365653]
[1646581451194,0.001,38910.0,38903.0,0.0365653]
[1646581451392,0.00022597,38908.0,38903.0,0.0365653]
[1646581451797,0.00022597,38908.0,38903.0,0.3365653]
[1646581452196,0.18772077,38907.0,38903.0,0.0365653]
[1646581454540,0.385587,38906.0,38903.0,0.0365653]
[1646581454741,0.25203877,38907.0,38903.0,0.0365653]
[1646581454942,0.385587,38906.0,38903.0,0.0365653]
[1646581455142,0.385587,38905.0,38903.0,0.0365653]
[1646581455643,0.064324,38904.0,38903.0,0.0365653]
[1646581455843,0.449911,38904.0,38903.0,0.0365653]
[1646581456493,0.06432498,38906.0,38903.0,0.0365653]
[1646581456494,0.385587,38906.0,38903.0,0.0365653]
[1646581456897,0.0514,38905.0,38903.0,0.0365653]
[1646581457094,0.0514,38904.0,38903.0,0.0365653]
[1646581457295,0.436987,38904.0,38903.0,0.0365653]
[1646581457494,0.43670827,38904.0,38903.0,0.0365653]
[1646581457796,0.05112127,38904.0,38903.0,0.0365653]
[1646581459396,0.05098228,38904.0,38903.0,0.0365653]
[1646581460449,0.0616,38906.0,38903.0,0.0365653]
[1646581461049,0.0616,38906.0,38903.0,0.23043259]
[1646581461249,0.0616,38906.0,38904.0,0.3]
[1646581461852,0.0002112,38908.0,38906.0,0.187486]
[1646581462049,0.001,38910.0,38907.0,0.3]
[1646581462253,0.001,38910.0,38909.0,0.20327181]
[1646581462949,0.001,38910.0,38909.0,0.20216281]
[1646581463351,0.001,38910.0,38909.0,0.50216281]
[1646581464090,0.001,38910.0,38909.0,0.20216281]
[1646581464291,0.001,38910.0,38907.0,0.3]
[1646581464690,0.001,38910.0,38906.0,0.1232]
[1646581464893,0.16332105,38910.0,38906.0,0.1232]
[1646581465091,0.16332105,38910.0,38907.0,0.0365653]
[1646581465291,0.385587,38909.0,38907.0,0.0365653]
[1646581465989,0.16332105,38910.0,38907.0,0.0365653]
[1646581465990,0.385587,38908.0,38907.0,0.0365653]
[1646581467644,0.436987,38908.0,38907.0,0.0365653]
[1646581470143,0.0514,38908.0,38907.0,0.0365653]
[1646581471200,0.00021117,38909.0,38907.0,0.0365653]
[1646581471601,0.001,38910.0,38907.0,0.0365653]
[1646581472000,0.00121117,38910.0,38907.0,0.0365653]
[1646581472902,0.001,38910.0,38907.0,0.0365653]
[1646581473101,0.00121117,38910.0,38907.0,0.0365653]
[1646581474102,0.001,38910.0,38907.0,0.0365653]
[1646581474303,0.00121117,38910.0,38907.0,0.0365653]
[1646581475345,0.001,38910.0,38907.0,0.0365653]
[1646581475549,0.385587,38908.0,38907.0,0.0365653]
[1646581475747,0.436987,38908.0,38907.0,0.0365653]
[1646581480094,0.4004217,38908.0,38906.0,0.1232]
[1646581485646,0.0514,38908.0,38906.0,0.1132]
[1646581486046,0.00021607,38909.0,38906.0,0.1132]
[1646581487096,0.00021607,38909.0,38907.0,0.3]
[1646581487296,0.001,38910.0,38907.0,0.3]
[1646581487495,0.00021607,38909.0,38907.0,0.3]
[1646581487697,0.00021607,38909.0,38908.0,0.036552]
[1646581487895,0.00021607,38909.0,38908.0,0.336552]
[1646581488098,0.00021607,38909.0,38908.0,0.3]
[1646581488297,0.00021607,38909.0,38908.0,0.336549]
[1646581488497,0.001,38910.0,38908.0,0.3]
[1646581488699,0.00112972,38910.0,38908.0,0.3]
[1646581489697,0.001,38910.0,38908.0,0.3]
[1646581490943,0.001,38910.0,38906.0,0.4132]
[1646581491142,0.001,38910.0,38906.0,0.1132]
[1646581491742,0.20407521,38908.0,38906.0,0.1132]
[1646581492344,0.385585,38907.0,38906.0,0.1132]
[1646581492742,0.20407521,38908.0,38906.0,0.1132]
[1646581492942,0.385585,38907.0,38906.0,0.1132]
[1646581493796,0.20407521,38908.0,38906.0,0.1132]
[1646581495294,0.00022615,38909.0,38906.0,0.1132]
[1646581495697,0.001,38910.0,38906.0,0.1132]
[1646581495900,0.00022615,38909.0,38906.0,0.1132]
[1646581496698,0.00022615,38909.0,38907.0,0.3]
[1646581496898,0.001,38910.0,38906.0,0.1132]
[1646581497098,0.0002216,38909.0,38907.0,0.3]
[1646581497743,0.0002216,38909.0,38906.0,0.1132]
[1646581498145,0.001,38910.0,38906.0,0.1132]
[1646581498345,0.0012216,38910.0,38906.0,0.1132]
[1646581499243,0.001,38910.0,38906.0,0.1132]
[1646581499644,0.0012216,38910.0,38906.0,0.1132]
[1646581500343,0.385585,38911.0,38906.0,0.1132]
[1646581500544,0.0519216,38912.0,38906.0,0.1132]
[1646581500746,0.1937816,38910.0,38906.0,0.1132]
[1646581501600,0.19357079,38910.0,38906.0,0.1132]
[1646581501999,0.1519216,38912.0,38906.0,0.1132]
[1646581502199,0.0519216,38912.0,38906.0,0.1132]
[1646581502800,0.06431,38911.0,38906.0,0.1132]
[1646581503001,0.2059585,38908.0,38906.0,0.1132]
[1646581503499,0.06431,38911.0,38906.0,0.1132]
[1646581503703,0.0519216,38912.0,38906.0,0.1132]
[1646581504301,0.05214773,38912.0,38906.0,0.1132]
[1646581505343,0.0519216,38912.0,38907.0,0.3]
[1646581505544,0.05214773,38912.0,38906.0,0.1132]
[1646581505744,0.20735827,38912.0,38906.0,0.1132]
[1646581505944,0.05214773,38912.0,38906.0,0.1132]
[1646581506545,0.0519216,38912.0,38906.0,0.1132]
[1646581506747,0.05214773,38912.0,38907.0,0.3]
[1646581507146,0.05214773,38912.0,38906.0,0.1132]
[1646581507748,0.0005216,38912.0,38907.0,0.3]
[1646581508049,0.00074773,38912.0,38907.0,0.3]
[1646581508697,0.00074773,38912.0,38906.0,0.1132]
[1646581508898,0.0005216,38912.0,38906.0,0.1132]
[1646581509094,0.14993404,38909.0,38906.0,0.1132]
[1646581510398,0.14993404,38909.0,38907.0,0.32206526]
[1646581510596,0.00073955,38912.0,38909.0,1.44986807]
[1646581510796,0.00073955,38912.0,38910.0,0.036544]
[1646581511399,0.0005216,38912.0,38910.0,0.036544]
[1646581516396,0.0005216,38912.0,38909.0,0.29986807]
[1646581516600,0.0005216,38912.0,38910.0,0.036543]
[1646581517496,0.0005216,38912.0,38909.0,0.30586807]
[1646581517797,0.00013313,38916.0,38909.0,0.30586807]
[1646581518096,0.00013313,38916.0,38909.0,0.29986807]
[1646581519943,0.00021149,38915.0,38909.0,0.29986807]
[1646581520946,0.00013313,38916.0,38909.0,0.29986807]
[1646581521247,0.00021149,38915.0,38909.0,0.29986807]
[1646581521846,0.00021149,38915.0,38910.0,0.036541]
[1646581522045,0.00013313,38916.0,38910.0,0.036541]
[1646581522247,0.00021149,38915.0,38910.0,0.036541]
[1646581522446,0.00021149,38915.0,38909.0,0.29986807]
[1646581523347,0.00013313,38916.0,38909.0,0.29986807]
[1646581523546,0.00021148,38915.0,38909.0,0.29986807]
[1646581524595,0.00013313,38916.0,38909.0,0.29986807]
[1646581524795,0.00021148,38915.0,38909.0,0.29986807]
[1646581525795,0.00013313,38916.0,38910.0,0.036541]
[1646581525995,0.00021148,38915.0,38913.0,0.17455995]
[1646581526996,0.00013313,38916.0,38913.0,0.17455995]
[1646581527198,0.00034461,38916.0,38913.0,0.17455995]
[1646581528059,0.00013313,38916.0,38913.0,0.17455995]
[1646581528260,0.00034461,38916.0,38913.0,0.17455995]
[1646581529260,0.00013313,38916.0,38913.0,0.17455995]
[1646581529462,0.00034461,38916.0,38913.0,0.17455995]
[1646581530260,0.00034461,38916.0,38913.0,0.16727695]
[1646581530466,0.00013313,38916.0,38913.0,0.16727695]
[1646581530861,0.00034461,38916.0,38913.0,0.16727695]
[1646581531707,0.00013313,38916.0,38913.0,0.16727695]
[1646581531909,0.00034461,38916.0,38913.0,0.16727695]
[1646581532808,0.00034461,38916.0,38914.0,0.036534]
[1646581533009,0.00013313,38916.0,38914.0,0.036532]
[1646581533307,0.00034461,38916.0,38914.0,0.036532]
[1646581534218,0.00013313,38916.0,38914.0,0.036532]
[1646581534811,0.00013313,38916.0,38913.0,0.16727695]
[1646581534812,0.00013313,38916.0,38915.0,0.036531]
[1646581539228,0.00013313,38916.0,38910.0,0.24500938]
[1646581539427,0.00013313,38916.0,38910.0,0.3]
[1646581540427,0.00021149,38915.0,38910.0,0.3]
[1646581541431,0.00013313,38916.0,38910.0,0.3]
[1646581541630,0.00021148,38915.0,38910.0,0.3]
[1646581542446,0.00013313,38916.0,38910.0,0.3]
[1646581542745,0.00021148,38915.0,38910.0,0.3]
[1646581543746,0.00013313,38916.0,38910.0,0.3]
[1646581544046,0.00021148,38915.0,38910.0,0.3]
[1646581544845,0.00013313,38916.0,38910.0,0.3]
[1646581545149,0.00013313,38916.0,38915.0,0.21957143]
[1646581545545,0.00013313,38916.0,38912.0,0.3]
[1646581546223,0.5906832,38916.0,38911.0,0.09653761]
[1646581546421,0.0514,38915.0,38911.0,0.09653761]
[1646581546623,0.38558,38914.0,38911.0,0.09653761]
[1646581546821,0.0514,38913.0,38911.0,0.09653761]
[1646581547023,0.38558,38912.0,38911.0,0.09653761]
[1646581547223,0.43698,38912.0,38911.0,0.09653761]
[1646581547622,0.0514,38912.0,38911.0,0.09653761]
[1646581548022,0.43698,38912.0,38911.0,0.09653761]
[1646581548825,0.38558,38912.0,38911.0,0.09653761]
[1646581549623,0.002,38914.0,38911.0,0.09653761]
[1646581549823,0.0514,38913.0,38911.0,0.09653761]
[1646581551057,0.38558,38912.0,38911.0,0.09653761]
[1646581551256,0.43698,38912.0,38911.0,0.09653761]
[1646581551554,0.0514,38912.0,38911.0,0.09653761]
[1646581554099,0.00021148,38915.0,38911.0,0.09653761]
[1646581554502,0.24457896,38916.0,38911.0,0.09653761]
[1646581554900,0.00021149,38915.0,38911.0,0.09653761]
[1646581555703,0.24357896,38916.0,38911.0,0.09653761]
[1646581555901,0.00021149,38915.0,38911.0,0.09653761]